fUSD/lending_fUSD_20250826
["ID","MTS","AMOUNT","RATE_DAILY","PERIOD"]
[381490717,1756230802211,-1365.31,0.00029589,5]
[381490718,1756230802221,-577.41,0.00029589,5]
[381490719,1756230802232,-796.06,0.00029589,5]
[381490720,1756230802242,-596.98,0.00029589,5]
[381490721,1756230802251,-649.76,0.00029589,5]
[381490722,1756230802261,-400.0,0.00029589,5]
[381490723,1756230802272,-865.97,0.00029589,5]
[381490724,1756230802283,-1461.95,0.00029589,5]
[381490725,1756230802294,-679.44,0.00029589,5]
[381490726,1756230802304,-1811.76,0.00029589,5]
[381490727,1756230802314,-356.35495763,0.00029589,5]
[381490728,1756230802324,-400.0,0.00029589,5]
[381490729,1756230802334,-1319.63,0.00029589,5]
[381490730,1756230802344,-439.96,0.00029589,5]
[381490731,1756230802354,-400.0,0.00029589,5]
[381490732,1756230802367,-1057.17,0.00029589,5]
[381490733,1756230802378,-400.0,0.00029589,5]
[381490734,1756230802388,-400.0,0.00029589,5]
[381490735,1756230802400,-400.0,0.00029589,5]
[381490736,1756230802411,-736.79,0.00029589,5]
[381490737,1756230802422,-747.22,0.00029589,5]
[381490738,1756230802432,-1451.65,0.00029589,5]
[381490739,1756230802443,-1376.31,0.00029589,5]
[381490740,1756230802453,-1514.02,0.00029589,5]
[381490741,1756230802462,-449.86,0.00029589,5]
[381490742,1756230802473,-1074.86,0.00029589,5]
[381490743,1756230802483,-794.3,0.00029589,5]
[381490744,1756230802494,-769.79,0.00029589,5]
[381490745,1756230802504,-400.0,0.00029589,5]
[381490746,1756230802517,-1162.07,0.00029589,5]
[381490747,1756230802529,-934.37,0.00029589,5]
[381490748,1756230802540,-1986.93,0.00029589,5]
[381490749,1756230802552,-708.52,0.00029589,5]
[381490750,1756230802563,-1255.96,0.00029589,5]
[381490751,1756230802573,-1235.73,0.00029589,5]
[381490752,1756230802584,-1339.03,0.00029589,5]
[381490753,1756230802595,-400.0,0.00029589,5]
[381490754,1756230802605,-400.0,0.00029589,5]
[381490755,1756230802616,-826.32,0.00029589,5]
[381490756,1756230802626,-817.2,0.00029589,5]
[381490757,1756230802637,-1322.4,0.00029589,5]
[381490758,1756230802647,-621.44,0.00029589,5]
[381490759,1756230802659,-1563.34,0.00029589,5]
[381490760,1756230802670,-400.0,0.00029589,5]
[381490761,1756230802681,-1226.73,0.00029589,5]
[381490762,1756230802694,-567.37,0.00029589,5]
[381490763,1756230802705,-469.42,0.00029589,5]
[381490764,1756230802715,-400.0,0.00029589,5]
[381490765,1756230802725,-1033.23,0.00029589,5]
[381490766,1756230802737,-583.42,0.00029589,5]
[381490767,1756230802749,-400.0,0.00029589,5]
[381490768,1756230802760,-400.0,0.00029589,5]
[381490769,1756230802770,-1617.06,0.00029589,5]
[381490770,1756230802781,-496.78,0.00029589,5]
[381490771,1756230802793,-751.23,0.00029589,5]
[381490772,1756230802805,-571.51,0.00029589,5]
[381490773,1756230802816,-740.82,0.00029589,5]
[381490774,1756230802828,-1057.52,0.00029589,5]
[381490775,1756230802839,-434.35,0.00029589,5]
[381490776,1756230802850,-752.52,0.00029589,5]
[381490777,1756230802861,-1288.56,0.00029589,5]
[381490778,1756230802871,-1749.23,0.00029589,5]
[381490779,1756230802881,-400.0,0.00029589,5]
[381490780,1756230802892,-1512.96,0.00029589,5]
[381490781,1756230802902,-1076.61,0.00029589,5]
[381490782,1756230802912,-4628.51,0.00029589,5]
[381490783,1756230802923,-400.0,0.00029589,5]
[381490784,1756230802933,-485.34,0.00029589,5]
[381490785,1756230802944,-612.79,0.00029589,5]
[381490786,1756230802955,-546.54,0.00029589,5]
[381490787,1756230802965,-1309.38,0.00029589,5]
[381490788,1756230802977,-875.95,0.00029589,5]
[381490789,1756230802988,-400.0,0.00029589,5]
[381490790,1756230802999,-1567.59,0.00029589,5]
[381490791,1756230803010,-2458.03,0.00029589,5]
[381490792,1756230803020,-400.0,0.00029589,5]
[381490793,1756230803030,-431.25,0.00029589,5]
[381490794,1756230803040,-1637.37,0.00029589,5]
[381490795,1756230803051,-875.76,0.00029589,5]
[381490796,1756230803060,-805.91,0.00029589,5]
[381490797,1756230803070,-1335.44,0.00029589,5]
[381490798,1756230803080,-813.45,0.00029589,5]
[381490799,1756230803090,-400.0,0.00029589,5]
[381490800,1756230803100,-385.23193341,0.00029589,5]
[381490801,1756230803110,-776.37,0.00029589,5]
[381490802,1756230803121,-440.79,0.00029589,5]
[381490803,1756230803131,-400.0,0.00029589,5]
[381490804,1756230803141,-1213.81,0.00029589,5]
[381490805,1756230803151,-937.37,0.00029589,5]
[381490806,1756230803162,-686.49,0.00029589,5]
[381490807,1756230803172,-400.0,0.00029589,5]
[381490808,1756230803183,-713.94,0.00029589,5]
[381490809,1756230803195,-862.64,0.00029589,5]
[381490810,1756230803205,-922.13,0.00029589,5]
[381490811,1756230803217,-842.8,0.00029589,5]
[381490812,1756230803227,-400.0,0.00029589,5]
[381490813,1756230803237,-1109.71,0.00029589,5]
[381490814,1756230803248,-400.0,0.00029589,5]
[381490815,1756230803260,-400.0,0.00029589,5]
[381490816,1756230803273,-400.0,0.00029589,5]
[381490817,1756230803285,-400.0,0.00029589,5]
[381490818,1756230803298,-537.55,0.00029589,5]
[381490819,1756230803309,-400.0,0.00029589,5]
[381490820,1756230803321,-996.63,0.00029589,5]
[381490821,1756230803332,-1260.94,0.00029589,5]
[381490822,1756230803343,-400.0,0.00029589,5]
[381490823,1756230803355,-410.02,0.00029589,5]
[381490824,1756230803369,-1760.66,0.00029589,5]
[381490825,1756230803382,-400.0,0.00029589,5]
[381490826,1756230803393,-400.0,0.00029589,5]
[381490827,1756230803405,-980.95,0.00029589,5]
[381490828,1756230803415,-400.0,0.00029589,5]
[381490829,1756230803426,-400.0,0.00029589,5]
[381490830,1756230803436,-400.0,0.00029589,5]
[381490831,1756230803450,-886.79,0.00029589,5]
[381490832,1756230803460,-400.0,0.00029589,5]
[381490833,1756230803474,-400.0,0.00029589,5]
[381490834,1756230803484,-1351.73,0.00029589,5]
[381490835,1756230803497,-400.0,0.00029589,5]
[381490836,1756230803506,-400.0,0.00029589,5]
[381490837,1756230803518,-457.01,0.00029589,5]
[381490838,1756230803528,-400.0,0.00029589,5]
[381490839,1756230803539,-1161.18,0.00029589,5]
[381490840,1756230803551,-933.82,0.00029589,5]
[381490841,1756230803562,-400.0,0.00029589,5]
[381490842,1756230803575,-504.23,0.00029589,5]
[381490843,1756230803587,-763.04,0.00029589,5]
[381490844,1756230803597,-626.61,0.00029589,5]
[381490845,1756230803610,-1778.67,0.00029589,5]
[381490846,1756230803622,-1427.19,0.00029589,5]
[381490847,1756230803634,-595.35,0.00029589,5]
[381490848,1756230803646,-400.0,0.00029589,5]
[381490849,1756230803659,-1212.24,0.00029589,5]
[381490850,1756230803668,-659.0,0.00029589,5]
[381490851,1756230803679,-400.0,0.00029589,2]
[381490852,1756230803693,-1136.12,0.00029589,5]
[381490853,1756230803705,-525.176917,0.00029589,5]
[381490854,1756230803717,-400.0,0.00029589,5]
[381490855,1756230803731,-400.0,0.00029589,5]
[381490856,1756230803745,-1388.02,0.00029589,5]
[381490857,1756230803760,-400.0,0.00029589,5]
[381490858,1756230803773,-851.42,0.00029589,5]
[381490859,1756230803785,-790.48,0.00029589,5]
[381490860,1756230803797,-424.81,0.00029589,5]
[381490861,1756230803809,-1031.7,0.00029589,5]
[381490862,1756230803821,-186.54647737,0.00029589,5]
[381490863,1756230803834,-978.35,0.00029589,5]
[381490864,1756230803846,-400.0,0.00029589,5]
[381490865,1756230803857,-400.0,0.00029589,5]
[381490866,1756230803871,-835.03,0.00029589,5]
[381490867,1756230803884,-400.0,0.00029589,5]
[381490868,1756230803898,-1052.63,0.00029589,5]
[381490869,1756230803911,-1326.59,0.00029589,5]
[381490870,1756230803922,-686.76,0.00029589,5]
[381490871,1756230803933,-463.9,0.00029589,5]
[381490872,1756230803945,-441.77,0.00029589,5]
[381490873,1756230803957,-1026.11,0.00029589,5]
[381490874,1756230803970,-400.0,0.00029589,5]
[381490875,1756230803983,-400.0,0.00029589,5]
[381490876,1756230803995,-510.24,0.00029589,5]
[381490877,1756230804009,-400.0,0.00029589,5]
[381490878,1756230804020,-400.0,0.00029589,5]
[381490879,1756230804031,-400.0,0.00029589,5]
[381490880,1756230804041,-1032.18,0.00029589,5]
[381490881,1756230804051,-1025.85,0.00029589,5]
[381490882,1756230804064,-400.0,0.00029589,5]
[381490883,1756230804076,-682.58,0.00029589,5]
[381490884,1756230804088,-682.08,0.00029589,5]
[381490885,1756230804106,-400.0,0.00029589,5]
[381490886,1756230804117,-611.11,0.00029589,5]
[381490887,1756230804129,-507.58,0.00029589,5]
[381490888,1756230804143,-707.77,0.00029589,5]
[381490889,1756230804156,-1988.35,0.00029589,5]
[381490890,1756230804169,-671.23,0.00029589,5]
[381490891,1756230804185,-400.0,0.00029589,5]
[381490892,1756230804197,-400.0,0.00029589,5]
[381490893,1756230804211,-414.02,0.00029589,5]
[381490894,1756230804222,-1108.22,0.00029589,5]
[381490895,1756230804234,-620.36,0.00029589,5]
[381490896,1756230804246,-674.7,0.00029589,5]
[381490897,1756230804259,-1696.44,0.00029589,5]
[381490898,1756230804270,-400.0,0.00029589,5]
[381490899,1756230804281,-1262.19,0.00029589,5]
[381490900,1756230804294,-400.0,0.00029589,5]
[381490901,1756230804307,-400.0,0.00029589,5]
[381490902,1756230804319,-400.0,0.00029589,5]
[381490903,1756230804331,-838.64,0.00029589,5]
[381490904,1756230804343,-1451.77,0.00029589,5]
[381490905,1756230804356,-400.0,0.00029589,5]
[381490906,1756230804368,-1320.14,0.00029589,5]
[381490907,1756230804379,-1171.83,0.00029589,5]
[381490908,1756230804389,-400.0,0.00029589,5]
[381490909,1756230804400,-1229.77,0.00029589,5]
[381490910,1756230804412,-1055.35,0.00029589,5]
[381490911,1756230804423,-400.0,0.00029589,5]
[381490912,1756230804435,-400.0,0.00029589,5]
[381490913,1756230804447,-490.51,0.00029589,5]
[381490914,1756230804457,-451.3,0.00029589,5]
[381490915,1756230804468,-654.35,0.00029589,5]
[381490916,1756230804478,-1305.09,0.00029589,5]
[381490917,1756230804488,-715.4,0.00029589,5]
[381490918,1756230804498,-1150.93,0.00029589,5]
[381490919,1756230804597,-486.06,0.00029589,5]
[381490920,1756230804611,-1190.31,0.00029589,5]
[381490921,1756230804622,-400.0,0.00029589,5]
[381490922,1756230804632,-1053.64,0.00029589,5]
[381490923,1756230804645,-1314.02,0.00029589,5]
[381490924,1756230804657,-1447.76,0.00029589,5]
[381490925,1756230804670,-737.44,0.00029589,5]
[381490926,1756230804683,-710.08,0.00029589,5]
[381490927,1756230804697,-867.06,0.00029589,5]
[381490928,1756230804710,-2794.66,0.00029589,5]
[381490929,1756230804721,-831.22,0.00029589,5]
[381490930,1756230804734,-522.78,0.00029589,5]
[381490931,1756230804744,-1002.86,0.00029589,5]
[381490932,1756230804759,-518.85,0.00029589,5]
[381490933,1756230804771,-966.97,0.00029589,5]
[381490934,1756230804783,-535.3192301,0.00029589,5]
[381490935,1756230804795,-506.44,0.00029589,5]
[381490936,1756230804807,-415.74,0.00029589,5]
[381490937,1756230804818,-728.92,0.00029589,5]
[381490938,1756230804830,-777.45,0.00029589,5]
[381490939,1756230804840,-1382.78,0.00029589,5]
[381490940,1756230804853,-1380.42,0.00029589,5]
[381490941,1756230804864,-400.0,0.00029589,5]
[381490942,1756230804876,-1552.27,0.00029589,5]
[381490943,1756230804887,-411.47,0.00029589,5]
[381490944,1756230804899,-878.37,0.00029589,5]
[381490945,1756230804911,-400.0,0.00029589,5]
[381490946,1756230804921,-1109.68,0.00029589,5]
[381490947,1756230804932,-772.05,0.00029589,5]
[381490948,1756230804943,-1195.33,0.00029589,5]
[381490949,1756230804964,-650.21,0.00029589,5]
[381490950,1756230804976,-3396.04,0.00029589,5]
[381490951,1756230804988,-524.42,0.00029589,5]
[381490952,1756230805000,-400.0,0.00029589,5]
[381490953,1756230805013,-400.0,0.00029589,5]
[381490954,1756230805024,-400.0,0.00029589,5]
[381490955,1756230805035,-663.26,0.00029589,5]
[381490956,1756230805046,-1074.25,0.00029589,11]
[381490957,1756230805057,-979.78,0.00029589,5]
[381490958,1756230805069,-773.75,0.00029589,5]
[381490959,1756230805082,-936.41,0.00029589,5]
[381490960,1756230805094,-669.79,0.00029589,5]
[381490961,1756230805108,-1622.1,0.00029589,5]
[381490962,1756230805119,-406.22,0.00029589,5]
[381490963,1756230805131,-303.28299161,0.00029589,5]
[381490964,1756230805142,-901.22,0.00029589,5]
[381490965,1756230805154,-400.0,0.00029589,5]
[381490966,1756230805165,-742.95,0.00029589,5]
[381490967,1756230805177,-1367.67,0.00029589,5]
[381490968,1756230805188,-400.0,0.00029589,5]
[381490969,1756230805198,-400.0,0.00029589,5]
[381490970,1756230805210,-909.97,0.00029589,5]
[381490971,1756230805223,-400.0,0.00029589,5]
[381490972,1756230805238,-1346.04,0.00029589,5]
[381490973,1756230805252,-400.0,0.00029589,5]
[381490974,1756230805262,-1159.55,0.00029589,5]
[381490975,1756230805274,-1144.5,0.00029589,5]
[381490976,1756230805286,-400.0,0.00029589,5]
[381490977,1756230805298,-400.0,0.00029589,5]
[381490978,1756230805310,-957.94,0.00029589,5]
[381490979,1756230805323,-400.0,0.00029589,5]
[381490980,1756230805336,-1349.87,0.00029589,5]
[381490981,1756230805348,-400.0,0.00029589,5]
[381490982,1756230805360,-746.51,0.00029589,5]
[381490983,1756230805373,-646.69,0.00029589,5]
[381490984,1756230805384,-400.0,0.00029589,5]
[381490985,1756230805396,-1218.8,0.00029589,5]
[381490986,1756230805409,-400.0,0.00029589,5]
[381490987,1756230805421,-803.65,0.00029589,5]
[381490988,1756230805433,-486.65,0.00029589,5]
[381490989,1756230805446,-802.89,0.00029589,5]
[381490990,1756230805459,-1750.37,0.00029589,5]
[381490991,1756230805470,-595.5,0.00029589,5]
[381490992,1756230805481,-473.57,0.00029589,5]
[381490993,1756230805493,-400.0,0.00029589,5]
[381490994,1756230805504,-400.0,0.00029589,5]
[381490995,1756230805516,-400.0,0.00029589,5]
[381490996,1756230805527,-584.57,0.00029589,5]
[381490997,1756230805538,-3322.0,0.00029589,5]
[381490998,1756230805549,-1034.18,0.00029589,5]
[381490999,1756230805561,-400.0,0.00029589,5]
[381491000,1756230805572,-567.64,0.00029589,5]
[381491001,1756230805584,-1068.12,0.00029589,5]
[381491002,1756230805596,-679.23,0.00029589,5]
[381491003,1756230805609,-1261.88,0.00029589,5]
[381491004,1756230805621,-1292.44,0.00029589,5]
[381491005,1756230805634,-458.84,0.00029589,5]
[381491006,1756230805646,-400.0,0.00029589,5]
[381491007,1756230805658,-400.0,0.00029589,5]
[381491008,1756230805671,-163.1496219,0.00029589,5]
[381491009,1756230805682,-1122.85,0.00029589,5]
[381491010,1756230805696,-344.48103502,0.00029589,5]
[381491011,1756230805709,-400.0,0.00029589,5]
[381491012,1756230805721,-736.74,0.00029589,5]
[381491013,1756230805732,-400.0,0.00029589,5]
[381491014,1756230805743,-598.7,0.00029589,5]
[381491015,1756230805755,-400.0,0.00029589,5]
[381491016,1756230805766,-400.0,0.00029589,5]
[381491017,1756230805776,-400.0,0.00029589,5]
[381491018,1756230805787,-1491.81,0.00029589,5]
[381491019,1756230805799,-750.42,0.00029589,5]
[381491020,1756230805809,-400.0,0.00029589,5]
[381491021,1756230805819,-632.76,0.00029589,5]
[381491022,1756230805829,-463.02,0.00029589,5]
[381491023,1756230805839,-400.0,0.00029589,5]
[381491024,1756230805851,-849.73,0.00029589,5]
[381491025,1756230805861,-400.0,0.00029589,5]
[381491026,1756230805871,-400.0,0.00029589,5]
[381491027,1756230805882,-537.9,0.00029589,5]
[381491028,1756230805892,-400.0,0.00029589,5]
[381491029,1756230805902,-416.7,0.00029589,5]
[381491030,1756230805912,-400.0,0.00029589,5]
[381491031,1756230805923,-1105.29,0.00029589,5]
[381491032,1756230805933,-517.03,0.00029589,5]
[381491033,1756230805944,-322.7519156,0.00029589,5]
[381491034,1756230805954,-1111.68,0.00029589,5]
[381491035,1756230805965,-531.53,0.00029589,5]
[381491036,1756230805975,-1203.47,0.00029589,5]
[381491037,1756230805985,-1302.16,0.00029589,5]
[381491038,1756230805995,-1324.35,0.00029589,5]
[381491039,1756230806005,-712.36,0.00029589,5]
[381491040,1756230806015,-1369.04,0.00029589,5]
[381491041,1756230806026,-1094.27,0.00029589,5]
[381491042,1756230806037,-816.57,0.00029589,5]
[381491043,1756230806047,-694.38,0.00029589,5]
[381491044,1756230806057,-250.0,0.00029589,5]
[381491045,1756230806067,-636.59,0.00029589,5]
[381491046,1756230806078,-1171.55,0.00029589,5]
[381491047,1756230806088,-400.0,0.00029589,5]
[381491048,1756230806099,-748.0,0.00029589,5]
[381491049,1756230806109,-674.36,0.00029589,5]
[381491050,1756230806121,-400.0,0.00029589,5]
[381491051,1756230806131,-737.97,0.00029589,5]
[381491052,1756230806141,-637.3,0.00029589,5]
[381491053,1756230806152,-408.13,0.00029589,5]
[381491054,1756230806163,-311.2038153,0.00029589,5]
[381491055,1756230806172,-1342.91,0.00029589,5]
[381491056,1756230806182,-719.93,0.00029589,5]
[381491057,1756230806193,-1012.86,0.00029589,5]
[381491058,1756230806204,-715.27,0.00029589,5]
[381491059,1756230806214,-2696.16,0.00029589,5]
[381491060,1756230806224,-1267.69,0.00029589,5]
[381491061,1756230806234,-1920.87,0.00029589,5]
[381491062,1756230806244,-667.39,0.00029589,5]
[381491063,1756230806254,-754.15,0.00029589,5]
[381491064,1756230806266,-400.0,0.00029589,5]
[381491065,1756230806276,-787.87,0.00029589,5]
[381491066,1756230806286,-1759.81,0.00029589,5]
[381491067,1756230806297,-400.0,0.00029589,5]
[381491068,1756230806307,-400.0,0.00029589,5]
[381491069,1756230806318,-1291.3,0.00029589,5]
[381491070,1756230806328,-1556.21,0.00029589,5]
[381491071,1756230806338,-400.0,0.00029589,5]
[381491072,1756230806348,-400.0,0.00029589,5]
[381491073,1756230806359,-576.82,0.00029589,5]
[381491074,1756230806370,-5113.05,0.00029589,5]
[381491075,1756230806380,-705.33,0.00029589,5]
[381491076,1756230806392,-654.53,0.00029589,5]
[381491077,1756230806402,-1041.63,0.00029589,5]
[381491078,1756230806412,-425.77,0.00029589,5]
[381491079,1756230806423,-1209.1,0.00029589,5]
[381491080,1756230806434,-613.44,0.00029589,5]
[381491081,1756230806444,-400.0,0.00029589,5]
[381491082,1756230806455,-1479.47,0.00029589,5]
[381491083,1756230806465,-400.0,0.00029589,5]
[381491084,1756230806475,-1317.24,0.00029589,5]
[381491085,1756230806485,-400.0,0.00029589,5]
[381491086,1756230806495,-762.16,0.00029589,5]
[381491087,1756230806506,-960.79,0.00029589,5]
[381491088,1756230806516,-151.53974375,0.00029589,5]
[381491089,1756230806527,-1171.13,0.00029589,5]
[381491090,1756230806538,-1235.69,0.00029589,5]
[381491091,1756230806548,-630.41,0.00029589,5]
[381491092,1756230806559,-1512.33,0.00029589,5]
[381491093,1756230806569,-386.34,0.00029589,5]
[381491094,1756230806578,-400.0,0.00029589,5]
[381491095,1756230806588,-1422.53,0.00029589,5]
[381491096,1756230806597,-856.1,0.00029589,5]
[381491097,1756230806607,-1303.22,0.00029589,5]
[381491098,1756230806616,-792.6,0.00029589,5]
[381491099,1756230806625,-471.44,0.00029589,5]
[381491100,1756230806634,-1073.32,0.00029589,5]
[381491101,1756230806643,-1403.76,0.00029589,5]
[381491102,1756230806652,-400.0,0.00029589,5]
[381491103,1756230806663,-400.0,0.00029589,5]
[381491104,1756230806673,-1007.77,0.00029589,5]
[381491105,1756230806682,-1420.21,0.00029589,5]
[381491106,1756230806696,-952.45,0.00029589,5]
[381491107,1756230806706,-400.0,0.00029589,5]
[381491108,1756230806715,-491.6,0.00029589,5]
[381491109,1756230806726,-400.0,0.00029589,5]
[381491110,1756230806737,-2280.32,0.00029589,5]
[381491111,1756230806747,-1084.48,0.00029589,5]
[381491112,1756230806757,-1335.11,0.00029589,5]
[381491113,1756230806768,-400.0,0.00029589,5]
[381491114,1756230806779,-1191.78,0.00029589,5]
[381491115,1756230806789,-1124.09,0.00029589,5]
[381491116,1756230806800,-1238.64,0.00029589,5]
[381491117,1756230806809,-1253.31,0.00029589,5]
[381491118,1756230806819,-1325.68,0.00029589,5]
[381491119,1756230806829,-938.22,0.00029589,5]
[381491120,1756230806839,-499.47,0.00029589,5]
[381491121,1756230806849,-601.51,0.00029589,5]
[381491122,1756230806859,-484.19,0.00029589,5]
[381491123,1756230806869,-400.0,0.00029589,5]
[381491124,1756230806879,-797.42,0.00029589,5]
[381491125,1756230806889,-737.11,0.00029589,5]
[381491126,1756230806899,-703.79,0.00029589,5]
[381491127,1756230806909,-1575.39,0.00029589,5]
[381491128,1756230806918,-680.36,0.00029589,5]
[381491129,1756230806928,-672.12,0.00029589,5]
[381491130,1756230806939,-759.87,0.00029589,5]
[381491131,1756230806950,-926.18,0.00029589,5]
[381491132,1756230806960,-400.0,0.00029589,5]
[381491133,1756230806971,-618.83,0.00029589,5]
[381491134,1756230806981,-421.27127608,0.00029589,5]
[381491135,1756230806991,-862.99,0.00029589,5]
[381491136,1756230807001,-400.0,0.00029589,5]
[381491137,1756230807011,-1075.04,0.00029589,5]
[381491138,1756230807020,-1447.2,0.00029589,5]
[381491139,1756230807030,-575.53,0.00029589,5]
[381491140,1756230807039,-845.06,0.00029589,5]
[381491141,1756230807050,-489.17,0.00029589,5]
[381491142,1756230807059,-1238.05,0.00029589,5]
[381491143,1756230807068,-1102.7,0.00029589,5]
[381491144,1756230807077,-500.0,0.00029589,10]
[381491145,1756230807086,-1359.79,0.00029589,5]
[381491146,1756230807095,-820.48,0.00029589,5]
[381491147,1756230807104,-1712.23,0.00029589,5]
[381491148,1756230807113,-1138.32,0.00029589,5]
[381491149,1756230807122,-717.51,0.00029589,5]
[381491150,1756230807131,-1260.62,0.00029589,5]
[381491151,1756230807140,-690.59,0.00029589,5]
[381491152,1756230807149,-400.0,0.00029589,5]
[381491153,1756230807159,-400.0,0.00029589,5]
[381491154,1756230807168,-1643.75,0.00029589,5]
[381491155,1756230807177,-956.27,0.00029589,5]
[381491156,1756230807187,-310.0,0.00029589,5]
[381491157,1756230807197,-1080.95,0.00029589,5]
[381491158,1756230807209,-704.75,0.00029589,5]
[381491159,1756230807219,-400.0,0.00029589,5]
[381491160,1756230807228,-1188.76,0.00029589,5]
[381491161,1756230807238,-400.0,0.00029589,5]
[381491162,1756230807248,-884.15,0.00029589,5]
[381491163,1756230807257,-903.37,0.00029589,5]
[381491164,1756230807266,-400.0,0.00029589,5]
[381491165,1756230807274,-1272.98,0.00029589,5]
[381491166,1756230807283,-830.28,0.00029589,5]
[381491167,1756230807292,-702.95,0.00029589,5]
[381491168,1756230807304,-883.77,0.00029589,5]
[381491169,1756230807314,-4381.4,0.00029589,5]
[381491170,1756230807323,-1035.82,0.00029589,5]
[381491171,1756230807333,-440.04,0.00029589,5]
[381491172,1756230807342,-588.09,0.00029589,5]
[381491173,1756230807352,-1060.85,0.00029589,5]
[381491174,1756230807361,-729.67,0.00029589,5]
[381491175,1756230807370,-734.09,0.00029589,5]
[381491176,1756230807380,-818.36,0.00029589,5]
[381491177,1756230807389,-279.57705663,0.00029589,5]
[381491178,1756230807398,-1006.17,0.00029589,5]
[381491179,1756230807407,-752.5,0.00029589,5]
[381491180,1756230807416,-1000.26,0.00029589,5]
[381491181,1756230807426,-400.0,0.00029589,5]
[381491182,1756230807435,-1343.19,0.00029589,5]
[381491183,1756230807445,-400.0,0.00029589,5]
[381491184,1756230807455,-1006.41,0.00029589,5]
[381491185,1756230807465,-465.25,0.00029589,5]
[381491186,1756230807475,-574.94,0.00029589,5]
[381491187,1756230807484,-819.77,0.00029589,5]
[381491188,1756230807496,-1087.43,0.00029589,5]
[381491189,1756230807505,-927.58,0.00029589,5]
[381491190,1756230807515,-1229.66,0.00029589,5]
[381491191,1756230807524,-400.0,0.00029589,5]
[381491192,1756230807533,-1561.08,0.00029589,5]
[381491193,1756230807542,-605.76,0.00029589,5]
[381491194,1756230807552,-633.29,0.00029589,5]
[381491195,1756230807562,-1303.8,0.00029589,5]
[381491196,1756230807571,-673.66,0.00029589,5]
[381491197,1756230807580,-951.85,0.00029589,5]
[381491198,1756230807589,-727.97,0.00029589,5]
[381491199,1756230807599,-400.0,0.00029589,5]
[381491200,1756230807608,-761.39,0.00029589,5]
[381491201,1756230807617,-823.04,0.00029589,5]
[381491202,1756230807626,-995.91,0.00029589,5]
[381491203,1756230807636,-726.7,0.00029589,5]
[381491204,1756230807645,-2954.18,0.00029589,5]
[381491205,1756230807655,-932.17,0.00029589,5]
[381491206,1756230807664,-777.25,0.00029589,5]
[381491207,1756230807674,-810.82,0.00029589,5]
[381491208,1756230807684,-674.55,0.00029589,5]
[381491209,1756230807697,-400.0,0.00029589,5]
[381491210,1756230807706,-400.0,0.00029589,5]
[381491211,1756230807716,-894.99,0.00029589,5]
[381491212,1756230807726,-610.96,0.00029589,5]
[381491213,1756230807737,-524.65,0.00029589,5]
[381491214,1756230807747,-433.22,0.00029589,5]
[381491215,1756230807756,-705.71,0.00029589,5]
[381491216,1756230807767,-1276.0,0.00029589,5]